[Event "*** Titled Tuesday Blitz"]
[Site "Chess.com"]
[Date "2019.08.06"]
[Round "2"]
[White "filali-marouan"]
[Black "vova-79"]
[Result "1-0"]
[WhiteElo "2334"]
[BlackElo "2449"]
[TimeControl "180+2"]
[EndTime "13:20:14 PDT"]
[Termination "filali-marouan won by resignation"]

1. e4 {[%clk 0:03:01.9]} 1... e6 {[%clk 0:02:59.2]} 2. d4 {[%clk 0:03:02.1]}
2... d5 {[%clk 0:03:00.2]} 3. exd5 {[%clk 0:03:04]} 3... exd5 {[%clk 0:03:00.5]}
4. Nf3 {[%clk 0:03:05.9]} 4... Bd6 {[%clk 0:03:00.1]} 5. Be2 {[%clk 0:03:06.4]}
5... Ne7 {[%clk 0:02:59.3]} 6. O-O {[%clk 0:03:08.3]} 6... O-O {[%clk
0:03:00.5]} 7. c4 {[%clk 0:03:08.3]} 7... dxc4 {[%clk 0:03:00.2]} 8. Nbd2 {[%clk
0:03:09.4]} 8... b5 {[%clk 0:02:58.8]} 9. Ne4 {[%clk 0:03:10.3]} 9... Bb7 {[%clk
0:02:56.7]} 10. Nxd6 {[%clk 0:03:04.6]} 10... cxd6 {[%clk 0:02:56.8]} 11. a4
{[%clk 0:03:06.2]} 11... a6 {[%clk 0:02:55.9]} 12. b3 {[%clk 0:03:04.5]} 12...
d5 {[%clk 0:02:48]} 13. Ne5 {[%clk 0:03:02.3]} 13... Nbc6 {[%clk 0:02:47.3]} 14.
Bf4 {[%clk 0:03:00.3]} 14... Nxe5 {[%clk 0:02:46.4]} 15. Bxe5 {[%clk 0:03:01.2]}
15... Ng6 {[%clk 0:02:41.5]} 16. Bg3 {[%clk 0:03:01.5]} 16... Bc6 {[%clk
0:02:42.2]} 17. Re1 {[%clk 0:02:56.9]} 17... cxb3 {[%clk 0:02:41.2]} 18. axb5
{[%clk 0:02:52.4]} 18... Bxb5 {[%clk 0:02:41.8]} 19. Bxb5 {[%clk 0:02:47.4]}
19... axb5 {[%clk 0:02:41.9]} 20. Rxa8 {[%clk 0:02:47.1]} 20... Qxa8 {[%clk
0:02:41.6]} 21. Qxb3 {[%clk 0:02:48.5]} 21... Qc6 {[%clk 0:02:42.1]} 22. h4
{[%clk 0:02:43.5]} 22... Rc8 {[%clk 0:02:18.9]} 23. h5 {[%clk 0:02:33.8]} 23...
Nf8 {[%clk 0:02:18.9]} 24. Re5 {[%clk 0:02:34.8]} 24... Qc4 {[%clk 0:02:17]} 25.
Qe3 {[%clk 0:02:25.1]} 25... h6 {[%clk 0:02:12.4]} 26. Re8 {[%clk 0:02:22.1]}
26... Qc6 {[%clk 0:02:00.6]} 27. Re7 {[%clk 0:01:45.4]} 27... Ne6 {[%clk
0:01:21.5]} 28. Qf3 {[%clk 0:01:45.1]} 28... Ng5 {[%clk 0:01:20.9]} 29. Qf5
{[%clk 0:01:44.2]} 29... Qc2 {[%clk 0:01:16]} 30. Re8+ {[%clk 0:01:40.5]} 1-0

[Event "*** Titled Tuesday Blitz"]
[Site "Chess.com"]
[Date "2019.08.06"]
[Round "2"]
[White "Annawel"]
[Black "catalin009"]
[Result "1-0"]
[WhiteElo "2998"]
[BlackElo "2641"]
[TimeControl "180+2"]
[EndTime "13:20:18 PDT"]
[Termination "Annawel won by resignation"]

1. e4 {[%clk 0:03:01.9]} 1... c5 {[%clk 0:03:00.5]} 2. Nf3 {[%clk 0:03:03.1]}
2... Nc6 {[%clk 0:03:01.7]} 3. Nc3 {[%clk 0:03:00.7]} 3... g6 {[%clk 0:03:02.5]}
4. d4 {[%clk 0:03:01.3]} 4... cxd4 {[%clk 0:03:04.4]} 5. Nxd4 {[%clk 0:03:03]}
5... Bg7 {[%clk 0:03:05.8]} 6. Be3 {[%clk 0:03:04.7]} 6... Nf6 {[%clk
0:03:07.2]} 7. Bc4 {[%clk 0:03:06.1]} 7... O-O {[%clk 0:03:07.8]} 8. Bb3 {[%clk
0:03:07.5]} 8... a5 {[%clk 0:03:09]} 9. O-O {[%clk 0:03:04.2]} 9... a4 {[%clk
0:03:10.2]} 10. Nxa4 {[%clk 0:03:05.5]} 10... Nxe4 {[%clk 0:03:11.4]} 11. Nb5
{[%clk 0:03:06.9]} 11... Ra6 {[%clk 0:03:12.7]} 12. Qe2 {[%clk 0:03:07.3]} 12...
d6 {[%clk 0:03:13.5]} 13. Rad1 {[%clk 0:02:59.3]} 13... Nf6 {[%clk 0:02:55.5]}
14. c4 {[%clk 0:02:54.4]} 14... Bg4 {[%clk 0:02:55.4]} 15. f3 {[%clk 0:02:55.2]}
15... Bf5 {[%clk 0:02:52]} 16. c5 {[%clk 0:02:54]} 16... Na5 {[%clk 0:02:47.5]}
17. cxd6 {[%clk 0:02:48.6]} 17... Nxb3 {[%clk 0:02:42.5]} 18. Bb6 {[%clk
0:02:41.4]} 18... Qc8 {[%clk 0:00:52.5]} 19. dxe7 {[%clk 0:02:34.8]} 19... Rxa4
{[%clk 0:00:38.5]} 20. axb3 {[%clk 0:02:32.8]} 20... Rb4 {[%clk 0:00:33.9]} 21.
exf8=Q+ {[%clk 0:02:19.3]} 21... Bxf8 {[%clk 0:00:33.2]} 22. Bd4 {[%clk
0:02:19.7]} 22... Qc6 {[%clk 0:00:29.8]} 23. Na7 {[%clk 0:02:09.3]} 23... Qd6
{[%clk 0:00:18.5]} 24. Bc3 {[%clk 0:01:51.1]} 24... Qb6+ {[%clk 0:00:19.1]} 25.
Kh1 {[%clk 0:01:52.2]} 25... Qxa7 {[%clk 0:00:17.6]} 26. Bxf6 {[%clk 0:01:50.7]}
26... Rxb3 {[%clk 0:00:19.1]} 27. Rd8 {[%clk 0:01:51.3]} 27... Qb6 {[%clk
0:00:19.6]} 28. Rxf8+ {[%clk 0:01:51.7]} 1-0

[Event "*** Titled Tuesday Blitz"]
[Site "Chess.com"]
[Date "2019.08.06"]
[Round "2"]
[White "VeraNebolsina"]
[Black "tteshan"]
[Result "1-0"]
[WhiteElo "2372"]
[BlackElo "2197"]
[TimeControl "180+2"]
[EndTime "13:20:22 PDT"]
[Termination "VeraNebolsina won by resignation"]

1. e4 {[%clk 0:03:01.9]} 1... e6 {[%clk 0:03:00.2]} 2. d4 {[%clk 0:03:01.6]}
2... d5 {[%clk 0:03:02.1]} 3. exd5 {[%clk 0:03:02.7]} 3... exd5 {[%clk 0:03:04]}
4. Nf3 {[%clk 0:03:03.5]} 4... Nf6 {[%clk 0:03:05.2]} 5. Bd3 {[%clk 0:03:03.1]}
5... Bd6 {[%clk 0:03:05]} 6. O-O {[%clk 0:03:04]} 6... O-O {[%clk 0:03:06]} 7.
h3 {[%clk 0:03:00.8]} 7... c6 {[%clk 0:03:06.3]} 8. c4 {[%clk 0:03:00.4]} 8...
h6 {[%clk 0:03:05.2]} 9. Nc3 {[%clk 0:03:01]} 9... Be6 {[%clk 0:03:00]} 10. c5
{[%clk 0:02:59.8]} 10... Bc7 {[%clk 0:02:59.7]} 11. b4 {[%clk 0:02:54.6]} 11...
Nbd7 {[%clk 0:02:59.8]} 12. b5 {[%clk 0:02:46.8]} 12... Ba5 {[%clk 0:02:46.9]}
13. Bd2 {[%clk 0:02:46.3]} 13... Re8 {[%clk 0:02:39.2]} 14. Re1 {[%clk
0:02:39.7]} 14... cxb5 {[%clk 0:02:23.2]} 15. Nxb5 {[%clk 0:02:36.6]} 15... Bc7
{[%clk 0:02:10.9]} 16. Nxc7 {[%clk 0:02:34.1]} 16... Qxc7 {[%clk 0:02:12.8]} 17.
Qc1 {[%clk 0:02:34.9]} 17... Rac8 {[%clk 0:02:03.6]} 18. Bf4 {[%clk 0:02:34.2]}
18... Qa5 {[%clk 0:01:59.6]} 19. Qb2 {[%clk 0:02:26.3]} 19... b6 {[%clk
0:01:53]} 20. Bd2 {[%clk 0:02:26.4]} 20... Qa4 {[%clk 0:01:52.8]} 21. Bb5 {[%clk
0:02:27.4]} 21... Qxb5 {[%clk 0:01:23.7]} 22. Qxb5 {[%clk 0:02:27.7]} 22... bxc5
{[%clk 0:01:25]} 23. dxc5 {[%clk 0:02:22]} 23... Rxc5 {[%clk 0:01:25.9]} 24. Qd3
{[%clk 0:02:22.1]} 24... Ne4 {[%clk 0:01:23]} 25. Be3 {[%clk 0:02:13.7]} 25...
Rc3 {[%clk 0:01:20.9]} 26. Qa6 {[%clk 0:02:13.5]} 26... Rec8 {[%clk 0:00:56.5]}
27. Rac1 {[%clk 0:02:07.7]} 27... Rxc1 {[%clk 0:00:50.8]} 28. Rxc1 {[%clk
0:02:08.5]} 28... Rb8 {[%clk 0:00:43.5]} 29. Rc8+ {[%clk 0:02:07.8]} 29... Rxc8
{[%clk 0:00:44.8]} 30. Qxc8+ {[%clk 0:02:08.4]} 30... Kh7 {[%clk 0:00:46.7]} 31.
Nd4 {[%clk 0:01:59.9]} 31... Nb6 {[%clk 0:00:40.2]} 32. Qb7 {[%clk 0:01:57.4]}
32... Bd7 {[%clk 0:00:33.6]} 33. Qxa7 {[%clk 0:01:58.1]} 1-0

[Event "*** Titled Tuesday Blitz"]
[Site "Chess.com"]
[Date "2019.08.06"]
[Round "2"]
[White "rst2003"]
[Black "Mbneu"]
[Result "1-0"]
[WhiteElo "2237"]
[BlackElo "2278"]
[TimeControl "180+2"]
[EndTime "13:20:24 PDT"]
[Termination "rst2003 won by resignation"]

1. e4 {[%clk 0:02:45.9]} 1... c5 {[%clk 0:02:59.1]} 2. Nf3 {[%clk 0:02:44.2]}
2... Nf6 {[%clk 0:03:00.6]} 3. e5 {[%clk 0:02:40.9]} 3... Nd5 {[%clk 0:03:01.2]}
4. Nc3 {[%clk 0:02:41.8]} 4... Nxc3 {[%clk 0:03:02.2]} 5. dxc3 {[%clk
0:02:43.4]} 5... Nc6 {[%clk 0:03:03.3]} 6. Bf4 {[%clk 0:02:43.9]} 6... e6 {[%clk
0:03:03.8]} 7. Qd2 {[%clk 0:02:44.3]} 7... Qc7 {[%clk 0:03:04.4]} 8. O-O-O
{[%clk 0:02:45.2]} 8... a6 {[%clk 0:03:06]} 9. h4 {[%clk 0:02:46]} 9... b5
{[%clk 0:03:05.6]} 10. h5 {[%clk 0:02:47.3]} 10... h6 {[%clk 0:03:06]} 11. g4
{[%clk 0:02:47.7]} 11... Bb7 {[%clk 0:03:03.6]} 12. Bg2 {[%clk 0:02:49.2]} 12...
c4 {[%clk 0:03:04.3]} 13. Nd4 {[%clk 0:02:47]} 13... b4 {[%clk 0:02:49]} 14.
Nxc6 {[%clk 0:02:40.3]} 14... Bxc6 {[%clk 0:02:42.9]} 15. Bxc6 {[%clk
0:02:40.4]} 15... Qxc6 {[%clk 0:02:44]} 16. cxb4 {[%clk 0:02:41.2]} 16... Rb8
{[%clk 0:02:30]} 17. a3 {[%clk 0:02:39.8]} 17... Be7 {[%clk 0:02:26.1]} 18. Rh3
{[%clk 0:02:38.3]} 18... Rb7 {[%clk 0:02:22.2]} 19. Rc3 {[%clk 0:02:28.4]} 19...
a5 {[%clk 0:02:18.5]} 20. b3 {[%clk 0:02:14.1]} 20... axb4 {[%clk 0:02:06.9]}
21. Rxc4 {[%clk 0:02:14.8]} 21... Qa6 {[%clk 0:02:07.6]} 22. Rc8+ {[%clk
0:01:48.9]} 22... Bd8 {[%clk 0:02:07.8]} 23. a4 {[%clk 0:01:47.5]} 23... O-O
{[%clk 0:02:04.9]} 24. g5 {[%clk 0:01:30.7]} 24... hxg5 {[%clk 0:01:58.4]} 25.
Bxg5 {[%clk 0:01:31.5]} 25... Bxg5 {[%clk 0:02:00]} 26. Rxf8+ {[%clk 0:01:32.3]}
26... Kxf8 {[%clk 0:02:00.3]} 27. Qxg5 {[%clk 0:01:33.8]} 27... Qa8 {[%clk
0:00:58]} 28. Rg1 {[%clk 0:01:32.8]} 28... Ke8 {[%clk 0:00:53]} 29. Qxg7 {[%clk
0:01:32]} 1-0

[Event "*** Titled Tuesday Blitz"]
[Site "Chess.com"]
[Date "2019.08.06"]
[Round "2"]
[White "vugarrasulov"]
[Black "Vnebo"]
[Result "1-0"]
[WhiteElo "2827"]
[BlackElo "2699"]
[TimeControl "180+2"]
[EndTime "13:20:33 PDT"]
[Termination "vugarrasulov won by resignation"]

1. e4 {[%clk 0:03:01.9]} 1... c5 {[%clk 0:02:58.9]} 2. Nf3 {[%clk 0:03:02.4]}
2... Nc6 {[%clk 0:02:59.5]} 3. d4 {[%clk 0:03:03.2]} 3... cxd4 {[%clk
0:03:01.4]} 4. Nxd4 {[%clk 0:03:05]} 4... Nf6 {[%clk 0:03:02]} 5. Nc3 {[%clk
0:03:06.2]} 5... d6 {[%clk 0:03:03.5]} 6. Bc4 {[%clk 0:03:05.9]} 6... Bd7 {[%clk
0:03:03.4]} 7. Be3 {[%clk 0:03:05.8]} 7... g6 {[%clk 0:03:03.4]} 8. f3 {[%clk
0:03:02.9]} 8... Bg7 {[%clk 0:03:03.6]} 9. Bb3 {[%clk 0:03:04.2]} 9... O-O
{[%clk 0:03:04.1]} 10. Qd2 {[%clk 0:03:05.3]} 10... Rc8 {[%clk 0:03:04.7]} 11.
O-O-O {[%clk 0:03:06.1]} 11... Nxd4 {[%clk 0:03:05.7]} 12. Bxd4 {[%clk 0:03:07]}
12... b5 {[%clk 0:03:07.3]} 13. Nd5 {[%clk 0:02:57.2]} 13... Nxd5 {[%clk
0:02:49.9]} 14. Bxg7 {[%clk 0:02:59.1]} 14... Kxg7 {[%clk 0:02:46.2]} 15. exd5
{[%clk 0:03:00.1]} 15... a5 {[%clk 0:02:41.9]} 16. a3 {[%clk 0:03:01.1]} 16...
Kg8 {[%clk 0:02:40.8]} 17. Rhe1 {[%clk 0:03:01.4]} 17... Rc5 {[%clk 0:02:40.4]}
18. Re3 {[%clk 0:02:52]} 18... b4 {[%clk 0:01:52.7]} 19. axb4 {[%clk 0:02:46.3]}
19... axb4 {[%clk 0:01:54.6]} 20. Qxb4 {[%clk 0:02:47.1]} 20... Qc7 {[%clk
0:01:48.9]} 21. Rc3 {[%clk 0:02:29.7]} 21... Rc8 {[%clk 0:01:39.4]} 22. Re1
{[%clk 0:02:25.9]} 22... Qa7 {[%clk 0:01:21.7]} 23. Rxc5 {[%clk 0:02:07.3]}
23... dxc5 {[%clk 0:01:19.1]} 24. Qc3 {[%clk 0:02:08.4]} 24... Bb5 {[%clk
0:00:48]} 25. Bc4 {[%clk 0:01:59.6]} 25... Bxc4 {[%clk 0:00:45.9]} 26. Qxc4
{[%clk 0:02:01.5]} 26... Qa1+ {[%clk 0:00:38.9]} 27. Kd2 {[%clk 0:02:02.2]}
27... Qxb2 {[%clk 0:00:40.1]} 28. Rxe7 {[%clk 0:02:01.1]} 28... Qf6 {[%clk
0:00:40.4]} 29. Qe4 {[%clk 0:01:57.6]} 29... Qd6 {[%clk 0:00:31.9]} 30. f4
{[%clk 0:01:53.5]} 30... Kf8 {[%clk 0:00:22.2]} 31. Qe5 {[%clk 0:01:51]} 31...
Rd8 {[%clk 0:00:20.2]} 32. Re8+ {[%clk 0:01:52]} 1-0

[Event "*** Titled Tuesday Blitz"]
[Site "Chess.com"]
[Date "2019.08.06"]
[Round "2"]
[White "beatles_22"]
[Black "jefferyx"]
[Result "0-1"]
[WhiteElo "2663"]
[BlackElo "2926"]
[TimeControl "180+2"]
[EndTime "13:20:34 PDT"]
[Termination "jefferyx won by resignation"]

1. e4 {[%clk 0:03:01.9]} 1... c6 {[%clk 0:02:59.3]} 2. d4 {[%clk 0:03:01.2]}
2... d5 {[%clk 0:03:00.7]} 3. e5 {[%clk 0:03:02.8]} 3... Bf5 {[%clk 0:03:01.6]}
4. Nd2 {[%clk 0:03:03.7]} 4... e6 {[%clk 0:03:01]} 5. Nb3 {[%clk 0:03:05.2]}
5... c5 {[%clk 0:02:53.8]} 6. dxc5 {[%clk 0:03:03.5]} 6... Bxc5 {[%clk
0:02:55.7]} 7. Bd3 {[%clk 0:02:51.3]} 7... Ne7 {[%clk 0:02:52.9]} 8. Nf3 {[%clk
0:02:39.1]} 8... Bb6 {[%clk 0:02:46.1]} 9. O-O {[%clk 0:02:38.8]} 9... Nbc6
{[%clk 0:02:47.4]} 10. h3 {[%clk 0:02:35.1]} 10... h6 {[%clk 0:02:43.8]} 11. a3
{[%clk 0:02:36.1]} 11... O-O {[%clk 0:02:44.5]} 12. Re1 {[%clk 0:02:37.4]} 12...
Rc8 {[%clk 0:02:45.1]} 13. Bf4 {[%clk 0:02:34.7]} 13... Ng6 {[%clk 0:02:36.5]}
14. Bg3 {[%clk 0:02:32]} 14... Nce7 {[%clk 0:02:37.6]} 15. Nbd4 {[%clk
0:02:06.6]} 15... Bxd3 {[%clk 0:02:38.4]} 16. Qxd3 {[%clk 0:02:08.4]} 16... Qc7
{[%clk 0:02:19.3]} 17. c3 {[%clk 0:01:58.6]} 17... Qc4 {[%clk 0:02:18.9]} 18.
Qd2 {[%clk 0:01:54.6]} 18... Nc6 {[%clk 0:02:17.4]} 19. Rad1 {[%clk 0:01:44.8]}
19... Nge7 {[%clk 0:02:18]} 20. Bf4 {[%clk 0:01:24.1]} 20... Nxd4 {[%clk
0:02:02.7]} 21. cxd4 {[%clk 0:00:53]} 21... Qc2 {[%clk 0:02:04.6]} 22. Rc1
{[%clk 0:00:52.4]} 22... Qxd2 {[%clk 0:01:40.2]} 23. Bxd2 {[%clk 0:00:52.3]}
23... Nc6 {[%clk 0:01:41.7]} 24. Bc3 {[%clk 0:00:39.4]} 24... Rc7 {[%clk
0:01:43.2]} 25. Kf1 {[%clk 0:00:34.6]} 25... Rfc8 {[%clk 0:01:44.9]} 26. Ke2
{[%clk 0:00:35.6]} 26... Nxd4+ {[%clk 0:01:36.8]} 27. Nxd4 {[%clk 0:00:29.8]}
27... Bxd4 {[%clk 0:01:38]} 28. Kd3 {[%clk 0:00:31.1]} 28... Bxf2 {[%clk
0:01:35.6]} 29. Rf1 {[%clk 0:00:31.3]} 29... Bb6 {[%clk 0:01:24.7]} 0-1

[Event "*** Titled Tuesday Blitz"]
[Site "Chess.com"]
[Date "2019.08.06"]
[Round "2"]
[White "fm24601"]
[Black "fancyknightmaneuvers"]
[Result "1-0"]
[WhiteElo "2689"]
[BlackElo "2564"]
[TimeControl "180+2"]
[EndTime "13:20:44 PDT"]
[Termination "fm24601 won by checkmate"]

1. e4 {[%clk 0:03:01.9]} 1... c5 {[%clk 0:02:58.2]} 2. Nf3 {[%clk 0:03:02.4]}
2... Nc6 {[%clk 0:02:59]} 3. Bb5 {[%clk 0:03:03.8]} 3... e6 {[%clk 0:02:59.1]}
4. b3 {[%clk 0:03:04]} 4... Qf6 {[%clk 0:02:55.6]} 5. c3 {[%clk 0:02:40.7]} 5...
Qg6 {[%clk 0:02:54]} 6. O-O {[%clk 0:02:36]} 6... Qxe4 {[%clk 0:02:53.2]} 7. Re1
{[%clk 0:02:35.2]} 7... Qg6 {[%clk 0:02:51]} 8. d4 {[%clk 0:02:35.6]} 8... cxd4
{[%clk 0:02:49]} 9. cxd4 {[%clk 0:02:33.8]} 9... Nf6 {[%clk 0:02:49.7]} 10. d5
{[%clk 0:02:32.1]} 10... Ne7 {[%clk 0:02:32.7]} 11. dxe6 {[%clk 0:01:56.1]}
11... fxe6 {[%clk 0:02:29.8]} 12. Rxe6 {[%clk 0:01:55]} 12... a6 {[%clk
0:02:25.6]} 13. Bd3 {[%clk 0:01:55.2]} 13... Qh5 {[%clk 0:02:22.1]} 14. Re5
{[%clk 0:01:54.5]} 14... Qf7 {[%clk 0:02:08]} 15. Ng5 {[%clk 0:01:21.6]} 15...
Qh5 {[%clk 0:02:03.5]} 16. Nf3 {[%clk 0:00:47.6]} 16... Qf7 {[%clk 0:01:52]} 17.
Ba3 {[%clk 0:00:48.8]} 17... h6 {[%clk 0:01:22.1]} 18. Nc3 {[%clk 0:00:46.6]}
18... Kd8 {[%clk 0:00:54.1]} 19. Bc4 {[%clk 0:00:37.4]} 19... Qg6 {[%clk
0:00:45.6]} 20. Bc5 {[%clk 0:00:30.8]} 20... Nc6 {[%clk 0:00:41.3]} 21. Bb6#
{[%clk 0:00:29.7]} 1-0

[Event "*** Titled Tuesday Blitz"]
[Site "Chess.com"]
[Date "2019.08.06"]
[Round "2"]
[White "GianmarcoVaR"]
[Black "Agent-JL"]
[Result "1-0"]
[WhiteElo "2552"]
[BlackElo "2352"]
[TimeControl "180+2"]
[EndTime "13:20:46 PDT"]
[Termination "GianmarcoVaR won by resignation"]

1. d4 {[%clk 0:02:50.8]} 1... Nf6 {[%clk 0:03:00.4]} 2. Nf3 {[%clk 0:02:51.5]}
2... e6 {[%clk 0:02:59.1]} 3. c4 {[%clk 0:02:50.8]} 3... Bb4+ {[%clk 0:02:59]}
4. Nbd2 {[%clk 0:02:42.2]} 4... d5 {[%clk 0:02:54.1]} 5. a3 {[%clk 0:02:35.7]}
5... Bxd2+ {[%clk 0:02:52.2]} 6. Qxd2 {[%clk 0:02:37.6]} 6... Ne4 {[%clk
0:02:41.2]} 7. Qc2 {[%clk 0:02:38.5]} 7... O-O {[%clk 0:02:43.1]} 8. e3 {[%clk
0:02:36.4]} 8... b6 {[%clk 0:02:35.3]} 9. Bd3 {[%clk 0:02:34.4]} 9... Bb7 {[%clk
0:02:31]} 10. O-O {[%clk 0:02:25.7]} 10... Nd7 {[%clk 0:02:28.1]} 11. cxd5
{[%clk 0:02:20.7]} 11... exd5 {[%clk 0:02:27.2]} 12. b4 {[%clk 0:02:22.3]} 12...
Rc8 {[%clk 0:02:02.4]} 13. a4 {[%clk 0:01:54.2]} 13... c5 {[%clk 0:01:34.5]} 14.
bxc5 {[%clk 0:01:52.7]} 14... bxc5 {[%clk 0:01:35.6]} 15. dxc5 {[%clk
0:01:54.6]} 15... Ndxc5 {[%clk 0:01:35.3]} 16. Ba3 {[%clk 0:01:55.8]} 16... Nxd3
{[%clk 0:01:28.8]} 17. Qxd3 {[%clk 0:01:56]} 17... Rc3 {[%clk 0:01:05.6]} 18.
Qd4 {[%clk 0:01:56.4]} 18... Rc4 {[%clk 0:01:05.9]} 19. Qxa7 {[%clk 0:01:56.3]}
19... Re8 {[%clk 0:00:35.3]} 20. Qxb7 {[%clk 0:01:55.4]} 20... Rxa4 {[%clk
0:00:36.8]} 21. Bb2 {[%clk 0:01:40.3]} 21... Nc5 {[%clk 0:00:18.1]} 22. Qb5
{[%clk 0:01:23.8]} 22... Rxa1 {[%clk 0:00:16.1]} 23. Rxa1 {[%clk 0:01:21.4]}
23... Ne6 {[%clk 0:00:18]} 24. Be5 {[%clk 0:01:16.3]} 24... f6 {[%clk
0:00:17.9]} 25. Bd4 {[%clk 0:01:15.6]} 25... Qd6 {[%clk 0:00:11.1]} 26. Qxe8+
{[%clk 0:01:14.7]} 1-0

[Event "*** Titled Tuesday Blitz"]
[Site "Chess.com"]
[Date "2019.08.06"]
[Round "2"]
[White "Zhuu96"]
[Black "NTBT_DHS"]
[Result "1-0"]
[WhiteElo "2938"]
[BlackElo "2662"]
[TimeControl "180+2"]
[EndTime "13:20:50 PDT"]
[Termination "Zhuu96 won by resignation"]

1. d4 {[%clk 0:03:00.8]} 1... Nf6 {[%clk 0:03:01]} 2. c4 {[%clk 0:03:01.3]} 2...
g6 {[%clk 0:03:02.3]} 3. Nc3 {[%clk 0:03:01.9]} 3... Bg7 {[%clk 0:03:03.7]} 4.
e4 {[%clk 0:03:03.5]} 4... O-O {[%clk 0:03:05.3]} 5. Nf3 {[%clk 0:03:04.9]} 5...
d6 {[%clk 0:03:06.8]} 6. Be2 {[%clk 0:03:06.1]} 6... e5 {[%clk 0:03:08.1]} 7. d5
{[%clk 0:03:04.5]} 7... a5 {[%clk 0:03:08.6]} 8. O-O {[%clk 0:03:05.4]} 8... Na6
{[%clk 0:03:09.8]} 9. Nd2 {[%clk 0:03:01.1]} 9... Nc5 {[%clk 0:03:07.5]} 10. Re1
{[%clk 0:02:57.8]} 10... Bd7 {[%clk 0:03:05.3]} 11. b3 {[%clk 0:02:53.8]} 11...
c6 {[%clk 0:03:04.2]} 12. a3 {[%clk 0:02:53.2]} 12... cxd5 {[%clk 0:03:04.9]}
13. cxd5 {[%clk 0:02:53.2]} 13... Qb8 {[%clk 0:02:48]} 14. a4 {[%clk 0:02:52.3]}
14... Rc8 {[%clk 0:02:34.9]} 15. Ba3 {[%clk 0:02:51.8]} 15... Nxa4 {[%clk
0:02:11.9]} 16. Nxa4 {[%clk 0:02:43]} 16... b5 {[%clk 0:02:12.8]} 17. Rb1 {[%clk
0:02:38.8]} 17... bxa4 {[%clk 0:02:10.7]} 18. bxa4 {[%clk 0:02:39.7]} 18... Qc7
{[%clk 0:02:00.4]} 19. Bb5 {[%clk 0:02:31.7]} 19... Bxb5 {[%clk 0:01:42.3]} 20.
axb5 {[%clk 0:02:31.2]} 20... Nd7 {[%clk 0:01:40]} 21. Rc1 {[%clk 0:02:29.7]}
21... Qb7 {[%clk 0:01:32.5]} 22. Qe2 {[%clk 0:02:24.8]} 22... Bf8 {[%clk
0:01:30.7]} 23. Rc6 {[%clk 0:02:23.9]} 23... Rcb8 {[%clk 0:01:20.8]} 24. Rb1
{[%clk 0:02:21.4]} 24... Nb6 {[%clk 0:01:07.6]} 25. h4 {[%clk 0:02:18.8]} 25...
Na4 {[%clk 0:00:56.7]} 26. Qc4 {[%clk 0:02:16.7]} 26... Nb6 {[%clk 0:00:56]} 27.
Qc2 {[%clk 0:02:16]} 27... Rc8 {[%clk 0:00:52.4]} 28. Rb3 {[%clk 0:02:12.4]}
28... Rd8 {[%clk 0:00:34.2]} 29. Rc7 {[%clk 0:02:11.5]} 29... Rac8 {[%clk
0:00:33.6]} 30. Rbc3 {[%clk 0:02:09.7]} 30... Qb8 {[%clk 0:00:34.1]} 31. R7c6
{[%clk 0:02:07.3]} 31... Be7 {[%clk 0:00:32.6]} 32. g3 {[%clk 0:02:08]} 32... h5
{[%clk 0:00:33.2]} 33. Nb3 {[%clk 0:02:08.6]} 33... Rxc6 {[%clk 0:00:29.8]} 34.
bxc6 {[%clk 0:02:05.7]} 34... Na4 {[%clk 0:00:28.8]} 35. c7 {[%clk 0:02:04.6]}
35... Qb6 {[%clk 0:00:23.6]} 36. cxd8=Q+ {[%clk 0:02:05.2]} 36... Bxd8 {[%clk
0:00:25.5]} 37. Rc6 {[%clk 0:02:06]} 37... Qb5 {[%clk 0:00:23.4]} 38. Rc8 {[%clk
0:02:05.7]} 38... Qd7 {[%clk 0:00:24]} 39. Qc6 {[%clk 0:02:06]} 1-0

[Event "*** Titled Tuesday Blitz"]
[Site "Chess.com"]
[Date "2019.08.06"]
[Round "2"]
[White "Pechen_Yeltsina"]
[Black "DanielNaroditsky"]
[Result "1-0"]
[WhiteElo "2671"]
[BlackElo "2974"]
[TimeControl "180+2"]
[EndTime "13:20:51 PDT"]
[Termination "Pechen_Yeltsina won by resignation"]

1. e4 {[%clk 0:03:01.9]} 1... Nf6 {[%clk 0:03:00]} 2. e5 {[%clk 0:03:02.7]} 2...
Nd5 {[%clk 0:03:01.5]} 3. d4 {[%clk 0:03:04.2]} 3... d6 {[%clk 0:03:02.7]} 4. c4
{[%clk 0:03:05.8]} 4... Nb6 {[%clk 0:03:04.1]} 5. exd6 {[%clk 0:03:07.1]} 5...
exd6 {[%clk 0:03:06]} 6. Nc3 {[%clk 0:03:07.7]} 6... Be7 {[%clk 0:03:07.9]} 7.
Bd3 {[%clk 0:03:09.1]} 7... O-O {[%clk 0:03:09.4]} 8. Nge2 {[%clk 0:03:10.1]}
8... Bf6 {[%clk 0:03:10.1]} 9. O-O {[%clk 0:03:10.2]} 9... Nc6 {[%clk
0:03:11.3]} 10. Be3 {[%clk 0:03:04.1]} 10... Bg4 {[%clk 0:03:12.7]} 11. f3
{[%clk 0:03:04.8]} 11... Bh5 {[%clk 0:03:13.8]} 12. b3 {[%clk 0:03:02.6]} 12...
Bg6 {[%clk 0:03:10.8]} 13. Ne4 {[%clk 0:03:01.1]} 13... Re8 {[%clk 0:03:09.4]}
14. Qd2 {[%clk 0:02:56.6]} 14... d5 {[%clk 0:03:05.2]} 15. Nxf6+ {[%clk
0:02:55.6]} 15... Qxf6 {[%clk 0:03:07.1]} 16. c5 {[%clk 0:02:53.6]} 16... Qe7
{[%clk 0:02:55.6]} 17. Kf2 {[%clk 0:02:39]} 17... Bxd3 {[%clk 0:02:51.8]} 18.
Qxd3 {[%clk 0:02:40.9]} 18... Nd7 {[%clk 0:02:52]} 19. Rae1 {[%clk 0:02:37.8]}
19... Nb4 {[%clk 0:02:47.8]} 20. Qd2 {[%clk 0:02:35.5]} 20... Nc6 {[%clk
0:02:37.5]} 21. Ng3 {[%clk 0:02:30.7]} 21... Qh4 {[%clk 0:02:37]} 22. Kg1 {[%clk
0:02:25]} 22... g6 {[%clk 0:02:38]} 23. Bf2 {[%clk 0:02:18]} 23... Qf6 {[%clk
0:02:35.1]} 24. b4 {[%clk 0:02:15.5]} 24... a6 {[%clk 0:02:32.2]} 25. a4 {[%clk
0:02:15.6]} 25... a5 {[%clk 0:02:26.3]} 26. b5 {[%clk 0:02:15.4]} 26... Nb4
{[%clk 0:02:27.9]} 27. Rxe8+ {[%clk 0:02:09.2]} 27... Rxe8 {[%clk 0:02:29.8]}
28. Re1 {[%clk 0:02:10.4]} 28... Re6 {[%clk 0:02:31.1]} 29. Rxe6 {[%clk
0:02:06.4]} 29... fxe6 {[%clk 0:02:30.1]} 30. f4 {[%clk 0:02:04.1]} 30... c6
{[%clk 0:02:28.5]} 31. b6 {[%clk 0:02:00.8]} 31... h5 {[%clk 0:02:29.8]} 32. Qe3
{[%clk 0:01:56.7]} 32... Qf7 {[%clk 0:02:16.4]} 33. Be1 {[%clk 0:01:50.6]} 33...
Nc2 {[%clk 0:02:16.8]} 34. Qd2 {[%clk 0:01:51.7]} 34... Nxe1 {[%clk 0:02:05.3]}
35. Qxe1 {[%clk 0:01:53.6]} 35... Nf6 {[%clk 0:01:56.2]} 36. h3 {[%clk
0:01:42.2]} 36... h4 {[%clk 0:01:41.3]} 37. Ne2 {[%clk 0:01:41.7]} 37... Qh7
{[%clk 0:01:39.6]} 38. Qxa5 {[%clk 0:01:37.3]} 38... Qf7 {[%clk 0:01:29.2]} 39.
Qe1 {[%clk 0:01:35.8]} 39... Ne4 {[%clk 0:01:27.9]} 40. Qxh4 {[%clk 0:01:31.9]}
40... Kg7 {[%clk 0:01:28]} 41. Qd8 {[%clk 0:01:27.4]} 41... g5 {[%clk
0:01:27.1]} 42. Qc7 {[%clk 0:01:26.5]} 42... gxf4 {[%clk 0:01:27.1]} 43. Nxf4
{[%clk 0:01:26.7]} 43... Kf6 {[%clk 0:01:26.2]} 44. Qxf7+ {[%clk 0:01:27.3]}
44... Kxf7 {[%clk 0:01:27.5]} 45. a5 {[%clk 0:01:28.7]} 45... Nf6 {[%clk
0:01:28]} 46. Nd3 {[%clk 0:01:25.1]} 46... Nd7 {[%clk 0:01:26.5]} 47. Ne5+
{[%clk 0:01:25.1]} 1-0